[Event "Titled Tuesday Blitz March 01 Early 2022"]
[White "Estrada Nieto, Julian"]
[Black "Xie, Bryan"]
[WhiteFideId "5101018"]
[BlackFideId "30941296"]
[WhiteElo "2246"]
[BlackElo "1899"]
[Result "1-0"]
[Round "02"]
[TimeControl "180+1"]
[Date "2022.03.01"]
[WhiteClock "0:00:41"]
[BlackClock "0:00:01"]

1. e4 {[%clk 0:03:00]}  c5 {[%clk 0:02:56]} 2. Nf3 {[%clk 0:03:00]}  e6 {[%clk 0:02:56]} 3. c3 {[%clk 0:03:00]}  Nf6 {[%clk 0:02:54]} 4. e5 {[%clk 0:03:00]}  Nd5 {[%clk 0:02:54]} 5. Bc4 {[%clk 0:03:01]}  d6 {[%clk 0:02:42]} 6. d4 {[%clk 0:03:01]}  cxd4 {[%clk 0:02:41]} 7. cxd4 {[%clk 0:03:02]}  Be7 {[%clk 0:02:39]} 8. O-O {[%clk 0:03:00]}  O-O {[%clk 0:02:39]} 9. Qe2 {[%clk 0:02:58]}  b6 {[%clk 0:02:00]} 10. Bxd5 {[%clk 0:02:44]}  exd5 {[%clk 0:01:58]} 11. Re1 {[%clk 0:02:43]}  Na6 {[%clk 0:01:51]} 12. Nc3 {[%clk 0:02:41]}  Nc7 {[%clk 0:01:52]} 13. Bf4 {[%clk 0:02:21]}  Ba6 {[%clk 0:01:06]} 14. Qe3 {[%clk 0:02:09]}  Rc8 {[%clk 0:00:56]} 15. h3 {[%clk 0:02:01]}  Bb7 {[%clk 0:00:51]} 16. Rad1 {[%clk 0:01:51]}  Ne6 {[%clk 0:00:51]} 17. exd6 {[%clk 0:01:47]}  Bxd6 {[%clk 0:00:49]} 18. Bxd6 {[%clk 0:01:47]}  Qxd6 {[%clk 0:00:49]} 19. Qe5 {[%clk 0:01:43]}  Qxe5 {[%clk 0:00:44]} 20. dxe5 {[%clk 0:01:41]}  Rfd8 {[%clk 0:00:32]} 21. Nd4 {[%clk 0:01:41]}  Rc4 {[%clk 0:00:30]} 22. Nce2 {[%clk 0:01:38]}  Rdc8 {[%clk 0:00:22]} 23. b3 {[%clk 0:01:28]}  R4c5 {[%clk 0:00:19]} 24. Rd2 {[%clk 0:01:22]}  Ba6 {[%clk 0:00:18]} 25. Nxe6 {[%clk 0:01:19]}  fxe6 {[%clk 0:00:18]} 26. Nd4 {[%clk 0:01:18]}  Kf7 {[%clk 0:00:18]} 27. f4 {[%clk 0:01:16]}  g6 {[%clk 0:00:15]} 28. Kf2 {[%clk 0:01:16]}  Rc3 {[%clk 0:00:12]} 29. Re3 {[%clk 0:01:14]}  Rxe3 {[%clk 0:00:11]} 30. Kxe3 {[%clk 0:01:14]}  Rc1 {[%clk 0:00:11]} 31. Rc2 {[%clk 0:01:05]}  Rxc2 {[%clk 0:00:02]} 32. Nxc2 {[%clk 0:01:05]}  Ke7 {[%clk 0:00:03]} 33. Kd4 {[%clk 0:01:04]}  Kd7 {[%clk 0:00:02]} 34. Ne3 {[%clk 0:01:04]}  Kc6 {[%clk 0:00:02]} 35. g4 {[%clk 0:01:02]}  Kd7 {[%clk 0:00:01]} 36. f5 {[%clk 0:01:01]}  gxf5 {[%clk 0:00:01]} 37. gxf5 {[%clk 0:01:01]}  exf5 {[%clk 0:00:02]} 38. Nxf5 {[%clk 0:01:01]}  Ke6 {[%clk 0:00:01]} 39. Ng7+ {[%clk 0:00:57]}  Kf7 {[%clk 0:00:02]} 40. Nh5 {[%clk 0:00:57]}  Bb7 {[%clk 0:00:02]} 41. Nf4 {[%clk 0:00:55]}  Ke7 {[%clk 0:00:02]} 42. Nxd5+ {[%clk 0:00:55]}  Ke6 {[%clk 0:00:03]} 43. Ne3 {[%clk 0:00:54]}  h5 {[%clk 0:00:03]} 44. h4 {[%clk 0:00:52]}  Bc6 {[%clk 0:00:02]} 45. a4 {[%clk 0:00:44]}  Bb7 {[%clk 0:00:01]} 46. Nc4 {[%clk 0:00:41]} 1-0


[Site "https://www.chess.com"]

[Event "Titled Tuesday Blitz March 01 Early 2022"]
[White "Eynullayev, Altay"]
[Black "Lakshmi C"]
[WhiteFideId "13413562"]
[BlackFideId "25035347"]
[WhiteElo "2079"]
[BlackElo "1775"]
[Result "0-1"]
[Round "02"]
[TimeControl "180+1"]
[Date "2022.03.01"]
[WhiteClock "0:00:07"]
[BlackClock "0:00:17"]

1. e4 {[%clk 0:03:00]}  c5 {[%clk 0:02:51]} 2. Nf3 {[%clk 0:02:58]}  Nc6 {[%clk 0:02:51]} 3. Bb5 {[%clk 0:02:51]}  g6 {[%clk 0:02:50]} 4. Bxc6 {[%clk 0:02:51]}  bxc6 {[%clk 0:02:50]} 5. O-O {[%clk 0:02:50]}  Bg7 {[%clk 0:02:50]} 6. Re1 {[%clk 0:02:51]}  e5 {[%clk 0:02:50]} 7. h3 {[%clk 0:02:49]}  Qe7 {[%clk 0:02:45]} 8. c3 {[%clk 0:02:49]}  d6 {[%clk 0:02:41]} 9. d4 {[%clk 0:02:37]}  cxd4 {[%clk 0:02:41]} 10. cxd4 {[%clk 0:02:37]}  Nh6 {[%clk 0:02:37]} 11. Nc3 {[%clk 0:02:37]}  O-O {[%clk 0:02:35]} 12. Be3 {[%clk 0:02:33]}  f6 {[%clk 0:02:33]} 13. Rc1 {[%clk 0:02:29]}  Nf7 {[%clk 0:02:30]} 14. b4 {[%clk 0:02:24]}  Bb7 {[%clk 0:02:03]} 15. d5 {[%clk 0:02:05]}  Rfc8 {[%clk 0:01:45]} 16. dxc6 {[%clk 0:02:04]}  Bxc6 {[%clk 0:01:45]} 17. Nd5 {[%clk 0:02:04]}  Qb7 {[%clk 0:01:44]} 18. a3 {[%clk 0:01:33]}  Nd8 {[%clk 0:01:36]} 19. Qb3 {[%clk 0:01:27]}  Kh8 {[%clk 0:01:35]} 20. a4 {[%clk 0:01:20]}  f5 {[%clk 0:01:33]} 21. Nc3 {[%clk 0:00:37]}  fxe4 {[%clk 0:01:31]} 22. Ng5 {[%clk 0:00:36]}  d5 {[%clk 0:01:17]} 23. Bc5 {[%clk 0:00:29]}  Bh6 {[%clk 0:01:04]} 24. h4 {[%clk 0:00:28]}  Nf7 {[%clk 0:01:04]} 25. Nxf7+ {[%clk 0:00:27]}  Qxf7 {[%clk 0:01:04]} 26. Nxe4 {[%clk 0:00:26]}  Bxc1 {[%clk 0:01:03]} 27. Nd6 {[%clk 0:00:26]}  Qf4 {[%clk 0:01:00]} 28. Nxc8 {[%clk 0:00:19]}  Rxc8 {[%clk 0:00:59]} 29. Qc2 {[%clk 0:00:14]}  Qd2 {[%clk 0:00:51]} 30. Qxc1 {[%clk 0:00:13]}  Qxc1 {[%clk 0:00:51]} 31. Rxc1 {[%clk 0:00:14]}  Bxa4 {[%clk 0:00:51]} 32. Re1 {[%clk 0:00:14]}  e4 {[%clk 0:00:49]} 33. Bd4+ {[%clk 0:00:15]}  Kg8 {[%clk 0:00:48]} 34. Ra1 {[%clk 0:00:15]}  Rc4 {[%clk 0:00:44]} 35. Bc5 {[%clk 0:00:15]}  Bc2 {[%clk 0:00:37]} 36. Rxa7 {[%clk 0:00:13]}  d4 {[%clk 0:00:37]} 37. Kf1 {[%clk 0:00:12]}  d3 {[%clk 0:00:25]} 38. Ke1 {[%clk 0:00:12]}  Bb3 {[%clk 0:00:22]} 39. Rd7 {[%clk 0:00:11]}  Rc2 {[%clk 0:00:20]} 40. Rd4 {[%clk 0:00:09]}  Re2+ {[%clk 0:00:19]} 41. Kf1 {[%clk 0:00:09]}  Ba4 {[%clk 0:00:17]} 42. g3 {[%clk 0:00:08]}  Bb5 {[%clk 0:00:17]} 43. Kg2 {[%clk 0:00:08]}  d2 {[%clk 0:00:17]} 44. Rd7 {[%clk 0:00:07]}  Bxd7 {[%clk 0:00:17]} 0-1


[Site "https://www.chess.com"]

[Event "Titled Tuesday Blitz March 01 Early 2022"]
[White "FGHSMN"]
[Black "Wahedi, Ahmad Siar"]
[BlackFideId "4651260"]
[WhiteElo "2684"]
[BlackElo "2362"]
[Result "1-0"]
[Round "02"]
[TimeControl "180+1"]
[Date "2022.03.01"]
[WhiteClock "0:01:52"]
[BlackClock "0:01:21"]

1. d4 {[%clk 0:02:58]}  Nf6 {[%clk 0:03:00]} 2. Nf3 {[%clk 0:02:53]}  g6 {[%clk 0:03:01]} 3. Nc3 {[%clk 0:02:50]}  d5 {[%clk 0:03:01]} 4. Bf4 {[%clk 0:02:48]}  Bg7 {[%clk 0:02:58]} 5. Nb5 {[%clk 0:02:46]}  Na6 {[%clk 0:02:58]} 6. e3 {[%clk 0:02:46]}  O-O {[%clk 0:02:57]} 7. h3 {[%clk 0:02:45]}  c6 {[%clk 0:02:56]} 8. Nc3 {[%clk 0:02:46]}  c5 {[%clk 0:02:53]} 9. Bxa6 {[%clk 0:02:45]}  bxa6 {[%clk 0:02:50]} 10. dxc5 {[%clk 0:02:43]}  Qa5 {[%clk 0:02:49]} 11. Be5 {[%clk 0:02:41]}  Qxc5 {[%clk 0:02:38]} 12. O-O {[%clk 0:02:39]}  Rd8 {[%clk 0:02:24]} 13. Bxf6 {[%clk 0:02:25]}  Bxf6 {[%clk 0:02:22]} 14. Ne4 {[%clk 0:02:25]}  Qb6 {[%clk 0:01:52]} 15. Nxf6+ {[%clk 0:02:23]}  Qxf6 {[%clk 0:01:52]} 16. Qd4 {[%clk 0:02:23]}  Qxd4 {[%clk 0:01:45]} 17. exd4 {[%clk 0:02:12]}  a5 {[%clk 0:01:44]} 18. Ne5 {[%clk 0:02:05]}  e6 {[%clk 0:01:39]} 19. Nc6 {[%clk 0:02:03]}  Rd6 {[%clk 0:01:36]} 20. Nxa5 {[%clk 0:02:03]}  Rb8 {[%clk 0:01:33]} 21. Nb3 {[%clk 0:02:01]}  a5 {[%clk 0:01:28]} 22. a4 {[%clk 0:01:56]}  Rc6 {[%clk 0:01:28]} 23. Rfc1 {[%clk 0:01:57]}  Rc4 {[%clk 0:01:24]} 24. Nxa5 {[%clk 0:01:54]}  Rxb2 {[%clk 0:01:20]} 25. Nxc4 {[%clk 0:01:52]}  dxc4 {[%clk 0:01:21]} 26. Rcb1 {[%clk 0:01:52]} 1-0


[Site "https://www.chess.com"]

[Event "Titled Tuesday Blitz March 01 Early 2022"]
[White "Fus, Jakub"]
[Black "Escudero Donoso, Felipe"]
[WhiteFideId "1193023"]
[BlackFideId "3410595"]
[WhiteElo "2111"]
[BlackElo "2184"]
[Result "1-0"]
[Round "02"]
[TimeControl "180+1"]
[Date "2022.03.01"]
[WhiteClock "0:01:57"]
[BlackClock "0:00:34"]

1. e4 {[%clk 0:03:00]}  c5 {[%clk 0:03:00]} 2. Nf3 {[%clk 0:02:56]}  e6 {[%clk 0:03:00]} 3. d4 {[%clk 0:02:56]}  cxd4 {[%clk 0:03:01]} 4. Nxd4 {[%clk 0:02:57]}  a6 {[%clk 0:03:01]} 5. g3 {[%clk 0:02:54]}  Nf6 {[%clk 0:02:53]} 6. Bg2 {[%clk 0:02:54]}  Qc7 {[%clk 0:02:53]} 7. O-O {[%clk 0:02:54]}  Be7 {[%clk 0:02:50]} 8. b3 {[%clk 0:02:54]}  d6 {[%clk 0:02:47]} 9. c4 {[%clk 0:02:54]}  O-O {[%clk 0:02:45]} 10. Bb2 {[%clk 0:02:54]}  Nbd7 {[%clk 0:02:45]} 11. Nc3 {[%clk 0:02:54]}  Rb8 {[%clk 0:02:41]} 12. Qe2 {[%clk 0:02:53]}  b6 {[%clk 0:02:14]} 13. Kh1 {[%clk 0:02:52]}  Bb7 {[%clk 0:02:14]} 14. f4 {[%clk 0:02:52]}  Rbc8 {[%clk 0:02:10]} 15. Rae1 {[%clk 0:02:42]}  Rfe8 {[%clk 0:02:10]} 16. g4 {[%clk 0:02:40]}  e5 {[%clk 0:01:49]} 17. Nf5 {[%clk 0:02:40]}  exf4 {[%clk 0:01:40]} 18. g5 {[%clk 0:02:39]}  Ne5 {[%clk 0:01:02]} 19. gxf6 {[%clk 0:02:38]}  Bxf6 {[%clk 0:01:03]} 20. Rxf4 {[%clk 0:02:30]}  Ng6 {[%clk 0:01:03]} 21. Rff1 {[%clk 0:02:24]}  b5 {[%clk 0:00:59]} 22. Nd5 {[%clk 0:02:19]}  Bxd5 {[%clk 0:00:52]} 23. Bxf6 {[%clk 0:02:14]}  gxf6 {[%clk 0:00:46]} 24. cxd5 {[%clk 0:02:13]}  Qc3 {[%clk 0:00:41]} 25. Nxd6 {[%clk 0:02:10]}  Qe5 {[%clk 0:00:38]} 26. Nxe8 {[%clk 0:02:09]}  Rxe8 {[%clk 0:00:39]} 27. Qf2 {[%clk 0:02:05]}  Kh8 {[%clk 0:00:37]} 28. Qxf6+ {[%clk 0:02:05]}  Qxf6 {[%clk 0:00:37]} 29. Rxf6 {[%clk 0:02:04]}  Ne5 {[%clk 0:00:38]} 30. Rxa6 {[%clk 0:02:02]}  Nd3 {[%clk 0:00:38]} 31. Re3 {[%clk 0:02:01]}  Nf2+ {[%clk 0:00:38]} 32. Kg1 {[%clk 0:02:01]}  Ng4 {[%clk 0:00:39]} 33. Re2 {[%clk 0:02:00]}  Rc8 {[%clk 0:00:39]} 34. Rc6 {[%clk 0:01:58]}  Ra8 {[%clk 0:00:35]} 35. e5 {[%clk 0:01:58]}  Kg7 {[%clk 0:00:34]} 36. h3 {[%clk 0:01:58]}  Nh6 {[%clk 0:00:34]} 37. e6 {[%clk 0:01:56]}  fxe6 {[%clk 0:00:34]} 38. dxe6 {[%clk 0:01:57]}  Nf5 {[%clk 0:00:34]} 39. Rc7+ {[%clk 0:01:57]}  Kg6 {[%clk 0:00:34]} 40. Bxa8 {[%clk 0:01:57]} 1-0


[Site "https://www.chess.com"]

[Event "Titled Tuesday Blitz March 01 Early 2022"]
[White "Gabrielian, Artur"]
[Black "Kozusek, Daniel"]
[WhiteFideId "4131002"]
[BlackFideId "349500"]
[WhiteElo "2440"]
[BlackElo "2206"]
[Result "1-0"]
[Round "02"]
[TimeControl "180+1"]
[Date "2022.03.01"]
[WhiteClock "0:00:37"]
[BlackClock "0:00:33"]

1. e4 {[%clk 0:03:00]}  e6 {[%clk 0:02:57]} 2. d3 {[%clk 0:02:59]}  c5 {[%clk 0:02:56]} 3. Nf3 {[%clk 0:02:59]}  Nc6 {[%clk 0:02:56]} 4. g3 {[%clk 0:02:58]}  Nge7 {[%clk 0:02:55]} 5. Bg2 {[%clk 0:02:59]}  g6 {[%clk 0:02:55]} 6. h4 {[%clk 0:02:55]}  h6 {[%clk 0:02:41]} 7. O-O {[%clk 0:02:52]}  Bg7 {[%clk 0:02:38]} 8. c3 {[%clk 0:02:51]}  e5 {[%clk 0:02:38]} 9. Be3 {[%clk 0:02:46]}  d6 {[%clk 0:02:38]} 10. Qc1 {[%clk 0:02:46]}  Bg4 {[%clk 0:02:34]} 11. Nbd2 {[%clk 0:02:45]}  O-O {[%clk 0:02:32]} 12. a4 {[%clk 0:02:34]}  f5 {[%clk 0:02:19]} 13. exf5 {[%clk 0:01:52]}  gxf5 {[%clk 0:02:17]} 14. Nh2 {[%clk 0:01:41]}  Be2 {[%clk 0:02:17]} 15. Re1 {[%clk 0:01:38]}  Bxd3 {[%clk 0:02:17]} 16. Ndf1 {[%clk 0:01:29]}  f4 {[%clk 0:01:58]} 17. gxf4 {[%clk 0:01:28]}  Nf5 {[%clk 0:01:57]} 18. fxe5 {[%clk 0:01:15]}  Nxe5 {[%clk 0:01:57]} 19. Bf4 {[%clk 0:00:51]}  Qxh4 {[%clk 0:01:52]} 20. Ng3 {[%clk 0:00:47]}  Nxg3 {[%clk 0:01:23]} 21. Bxg3 {[%clk 0:00:47]}  Qg5 {[%clk 0:01:23]} 22. Qxg5 {[%clk 0:00:44]}  hxg5 {[%clk 0:01:24]} 23. Rad1 {[%clk 0:00:44]}  c4 {[%clk 0:01:21]} 24. Bxb7 {[%clk 0:00:44]}  Rab8 {[%clk 0:01:20]} 25. Bd5+ {[%clk 0:00:44]}  Kh7 {[%clk 0:01:16]} 26. b4 {[%clk 0:00:43]}  Bc2 {[%clk 0:01:05]} 27. Be4+ {[%clk 0:00:42]}  Bxe4 {[%clk 0:01:05]} 28. Rxe4 {[%clk 0:00:42]}  Rbd8 {[%clk 0:00:55]} 29. Kg2 {[%clk 0:00:42]}  Rfe8 {[%clk 0:00:51]} 30. Ng4 {[%clk 0:00:40]}  Nxg4 {[%clk 0:00:38]} 31. Rxg4 {[%clk 0:00:39]}  d5 {[%clk 0:00:38]} 32. Rxg5 {[%clk 0:00:37]}  d4 {[%clk 0:00:33]} 33. cxd4 {[%clk 0:00:37]}  Rxd4 {[%clk 0:00:33]} 34. Rxg7+ {[%clk 0:00:37]} 1-0


[Site "https://www.chess.com"]

[Event "Titled Tuesday Blitz March 01 Early 2022"]
[White "Gadimbayli, Abdulla"]
[Black "Seemann, Jakub"]
[WhiteFideId "13404938"]
[BlackFideId "21874697"]
[WhiteElo "2282"]
[BlackElo "2003"]
[Result "1-0"]
[Round "02"]
[TimeControl "180+1"]
[Date "2022.03.01"]
[WhiteClock "0:01:04"]
[BlackClock "0:00:14"]

1. e4 {[%clk 0:03:00]}  c6 {[%clk 0:02:58]} 2. Nf3 {[%clk 0:03:01]}  d5 {[%clk 0:02:58]} 3. exd5 {[%clk 0:03:02]}  cxd5 {[%clk 0:02:58]} 4. d4 {[%clk 0:03:03]}  Nf6 {[%clk 0:02:58]} 5. Ne5 {[%clk 0:03:03]}  Bf5 {[%clk 0:02:55]} 6. c3 {[%clk 0:03:02]}  Nbd7 {[%clk 0:02:54]} 7. Nd2 {[%clk 0:02:46]}  g6 {[%clk 0:02:47]} 8. Be2 {[%clk 0:02:33]}  Bg7 {[%clk 0:02:47]} 9. Nxd7 {[%clk 0:02:25]}  Qxd7 {[%clk 0:02:44]} 10. O-O {[%clk 0:02:26]}  O-O {[%clk 0:02:44]} 11. Re1 {[%clk 0:02:26]}  Bg4 {[%clk 0:02:41]} 12. Nf3 {[%clk 0:02:23]}  Ne4 {[%clk 0:02:40]} 13. h3 {[%clk 0:02:21]}  Be6 {[%clk 0:02:28]} 14. Bd3 {[%clk 0:02:15]}  Nd6 {[%clk 0:01:55]} 15. Qe2 {[%clk 0:02:14]}  Rfe8 {[%clk 0:01:50]} 16. Ne5 {[%clk 0:02:14]}  Bxe5 {[%clk 0:01:49]} 17. Qxe5 {[%clk 0:01:51]}  Bf5 {[%clk 0:01:48]} 18. Bh6 {[%clk 0:01:50]}  f6 {[%clk 0:01:43]} 19. Qxd5+ {[%clk 0:01:50]}  e6 {[%clk 0:01:43]} 20. Bxf5 {[%clk 0:01:39]}  gxf5 {[%clk 0:01:37]} 21. Qb3 {[%clk 0:01:39]}  Kf7 {[%clk 0:01:29]} 22. Re3 {[%clk 0:01:34]}  Ne4 {[%clk 0:01:25]} 23. Rae1 {[%clk 0:01:32]}  Rg8 {[%clk 0:01:21]} 24. f3 {[%clk 0:01:26]}  Nd2 {[%clk 0:00:54]} 25. Qc2 {[%clk 0:01:13]}  Nc4 {[%clk 0:00:48]} 26. Rxe6 {[%clk 0:01:09]}  Rae8 {[%clk 0:00:31]} 27. Qxf5 {[%clk 0:01:04]}  Rg6 {[%clk 0:00:13]} 28. Rxf6+ {[%clk 0:01:04]}  Rxf6 {[%clk 0:00:14]} 29. Qxd7+ {[%clk 0:01:04]} 1-0


[Site "https://www.chess.com"]

[Event "Titled Tuesday Blitz March 01 Early 2022"]
[White "Gaehwiler, Gabriel"]
[Black "Matveeva, Olga"]
[WhiteFideId "1314530"]
[BlackFideId "24107018"]
[WhiteElo "2383"]
[BlackElo "2083"]
[Result "1-0"]
[Round "02"]
[TimeControl "180+1"]
[Date "2022.03.01"]
[WhiteClock "0:00:02"]
[BlackClock "0:00:02"]

1. d4 {[%clk 0:03:00]}  Nf6 {[%clk 0:02:59]} 2. Nf3 {[%clk 0:02:59]}  g6 {[%clk 0:02:58]} 3. b3 {[%clk 0:02:59]}  Bg7 {[%clk 0:02:57]} 4. Bb2 {[%clk 0:02:59]}  O-O {[%clk 0:02:58]} 5. Nbd2 {[%clk 0:03:00]}  d5 {[%clk 0:02:57]} 6. g3 {[%clk 0:02:58]}  c6 {[%clk 0:02:56]} 7. Bg2 {[%clk 0:02:59]}  Bg4 {[%clk 0:02:54]} 8. O-O {[%clk 0:03:00]}  Bxf3 {[%clk 0:02:52]} 9. Bxf3 {[%clk 0:03:00]}  Nbd7 {[%clk 0:02:51]} 10. c4 {[%clk 0:03:00]}  e6 {[%clk 0:02:50]} 11. Bg2 {[%clk 0:03:00]}  Re8 {[%clk 0:02:50]} 12. Qc2 {[%clk 0:03:00]}  Rc8 {[%clk 0:02:49]} 13. Rfd1 {[%clk 0:02:56]}  Qe7 {[%clk 0:02:47]} 14. Rac1 {[%clk 0:02:56]}  Bh6 {[%clk 0:02:30]} 15. e3 {[%clk 0:02:55]}  Bg7 {[%clk 0:02:22]} 16. Qb1 {[%clk 0:02:54]}  Ng4 {[%clk 0:02:13]} 17. Nf3 {[%clk 0:02:49]}  f5 {[%clk 0:02:09]} 18. a3 {[%clk 0:02:27]}  Ngf6 {[%clk 0:02:08]} 19. b4 {[%clk 0:02:27]}  Ne4 {[%clk 0:02:07]} 20. Ne1 {[%clk 0:02:25]}  Ndf6 {[%clk 0:02:06]} 21. Nd3 {[%clk 0:02:24]}  Nd7 {[%clk 0:01:36]} 22. Qa1 {[%clk 0:02:22]}  g5 {[%clk 0:01:32]} 23. f3 {[%clk 0:02:17]}  Nd6 {[%clk 0:01:28]} 24. c5 {[%clk 0:02:02]}  Nc4 {[%clk 0:01:27]} 25. e4 {[%clk 0:01:56]}  fxe4 {[%clk 0:01:21]} 26. fxe4 {[%clk 0:01:56]}  Ne3 {[%clk 0:01:20]} 27. Re1 {[%clk 0:01:56]}  Nxg2 {[%clk 0:01:20]} 28. Kxg2 {[%clk 0:01:57]}  Rf8 {[%clk 0:01:17]} 29. Rc2 {[%clk 0:01:51]}  Qf7 {[%clk 0:01:15]} 30. Qd1 {[%clk 0:01:48]}  Qg6 {[%clk 0:01:14]} 31. Rce2 {[%clk 0:01:37]}  Rce8 {[%clk 0:00:59]} 32. Bc3 {[%clk 0:01:33]}  h6 {[%clk 0:00:52]} 33. Bb2 {[%clk 0:01:29]}  Kh7 {[%clk 0:00:51]} 34. Re3 {[%clk 0:01:25]}  Kg8 {[%clk 0:00:38]} 35. Qe2 {[%clk 0:01:23]}  Nf6 {[%clk 0:00:33]} 36. Ne5 {[%clk 0:01:17]}  Qh7 {[%clk 0:00:34]} 37. exd5 {[%clk 0:01:16]}  exd5 {[%clk 0:00:33]} 38. Rf1 {[%clk 0:00:47]}  Ne4 {[%clk 0:00:32]} 39. Ref3 {[%clk 0:00:47]}  Rxf3 {[%clk 0:00:18]} 40. Rxf3 {[%clk 0:00:48]}  Rf8 {[%clk 0:00:17]} 41. b5 {[%clk 0:00:47]}  Rf6 {[%clk 0:00:11]} 42. bxc6 {[%clk 0:00:47]}  bxc6 {[%clk 0:00:10]} 43. a4 {[%clk 0:00:27]}  h5 {[%clk 0:00:05]} 44. Rxf6 {[%clk 0:00:25]}  Bxf6 {[%clk 0:00:06]} 45. Nxc6 {[%clk 0:00:25]}  g4 {[%clk 0:00:06]} 46. Nb4 {[%clk 0:00:17]}  Qf5 {[%clk 0:00:05]} 47. Qf1 {[%clk 0:00:17]}  Qe6 {[%clk 0:00:05]} 48. Nd3 {[%clk 0:00:11]}  Ng5 {[%clk 0:00:04]} 49. Qf4 {[%clk 0:00:03]}  Nf3 {[%clk 0:00:02]} 50. Kf1 {[%clk 0:00:02]} 1-0


[Site "https://www.chess.com"]

[Event "Titled Tuesday Blitz March 01 Early 2022"]
[White "Grafil, Franz Robert"]
[Black "Samadov, Read"]
[WhiteFideId "5205298"]
[BlackFideId "13417444"]
[WhiteElo "2211"]
[BlackElo "2084"]
[Result "1-0"]
[Round "02"]
[TimeControl "180+1"]
[Date "2022.03.01"]
[WhiteClock "0:00:03"]
[BlackClock "0:00:01"]

1. Nf3 {[%clk 0:03:00]}  Nf6 {[%clk 0:02:59]} 2. c4 {[%clk 0:03:01]}  e6 {[%clk 0:02:58]} 3. g3 {[%clk 0:03:00]}  d5 {[%clk 0:02:59]} 4. Bg2 {[%clk 0:02:56]}  d4 {[%clk 0:02:54]} 5. O-O {[%clk 0:02:53]}  c5 {[%clk 0:02:54]} 6. e3 {[%clk 0:02:53]}  Nc6 {[%clk 0:02:54]} 7. exd4 {[%clk 0:02:52]}  cxd4 {[%clk 0:02:55]} 8. d3 {[%clk 0:02:53]}  Bd6 {[%clk 0:02:55]} 9. Bg5 {[%clk 0:02:52]}  h6 {[%clk 0:02:49]} 10. Bxf6 {[%clk 0:02:51]}  Qxf6 {[%clk 0:02:50]} 11. Nbd2 {[%clk 0:02:52]}  Bc7 {[%clk 0:02:43]} 12. Ne4 {[%clk 0:02:31]}  Qe7 {[%clk 0:02:42]} 13. b4 {[%clk 0:02:31]}  Qxb4 {[%clk 0:02:37]} 14. Rb1 {[%clk 0:02:30]}  Qe7 {[%clk 0:02:37]} 15. Re1 {[%clk 0:02:20]}  O-O {[%clk 0:02:35]} 16. Ned2 {[%clk 0:02:00]}  Rb8 {[%clk 0:02:23]} 17. Nb3 {[%clk 0:01:53]}  Rd8 {[%clk 0:02:22]} 18. Qd2 {[%clk 0:01:50]}  a5 {[%clk 0:02:19]} 19. Qb2 {[%clk 0:01:45]}  Qf6 {[%clk 0:02:04]} 20. Nc5 {[%clk 0:01:30]}  b6 {[%clk 0:01:55]} 21. Ne4 {[%clk 0:01:26]}  Qe7 {[%clk 0:01:54]} 22. h4 {[%clk 0:01:25]}  Ba6 {[%clk 0:01:48]} 23. Qc2 {[%clk 0:01:03]}  Nb4 {[%clk 0:01:44]} 24. Qd2 {[%clk 0:01:03]}  f5 {[%clk 0:01:43]} 25. Neg5 {[%clk 0:00:51]}  hxg5 {[%clk 0:01:35]} 26. Nxg5 {[%clk 0:00:52]}  Rd6 {[%clk 0:01:28]} 27. a3 {[%clk 0:00:47]}  Nc6 {[%clk 0:01:27]} 28. Nxe6 {[%clk 0:00:45]}  Rxe6 {[%clk 0:01:26]} 29. Rxe6 {[%clk 0:00:46]}  Qxe6 {[%clk 0:01:16]} 30. Bd5 {[%clk 0:00:46]}  Qxd5 {[%clk 0:01:16]} 31. cxd5 {[%clk 0:00:47]}  Ne5 {[%clk 0:01:17]} 32. Qf4 {[%clk 0:00:37]}  Bxd3 {[%clk 0:01:13]} 33. Rc1 {[%clk 0:00:36]}  Bd6 {[%clk 0:01:10]} 34. Rc6 {[%clk 0:00:33]}  Nxc6 {[%clk 0:00:37]} 35. Qxd6 {[%clk 0:00:34]}  Re8 {[%clk 0:00:29]} 36. dxc6 {[%clk 0:00:34]}  Re1+ {[%clk 0:00:28]} 37. Kg2 {[%clk 0:00:29]}  Rc1 {[%clk 0:00:11]} 38. Qxd4 {[%clk 0:00:23]}  Be4+ {[%clk 0:00:11]} 39. f3 {[%clk 0:00:23]}  Bxc6 {[%clk 0:00:09]} 40. Kf2 {[%clk 0:00:13]}  Rc5 {[%clk 0:00:08]} 41. Qd8+ {[%clk 0:00:11]}  Kh7 {[%clk 0:00:08]} 42. Qxb6 {[%clk 0:00:12]}  Rc2+ {[%clk 0:00:05]} 43. Ke3 {[%clk 0:00:10]}  a4 {[%clk 0:00:06]} 44. Kf4 {[%clk 0:00:08]}  Rc3 {[%clk 0:00:05]} 45. Kxf5 {[%clk 0:00:09]}  Rxf3+ {[%clk 0:00:05]} 46. Kg4 {[%clk 0:00:08]}  Rf6 {[%clk 0:00:05]} 47. Qd4 {[%clk 0:00:06]}  Be8 {[%clk 0:00:03]} 48. h5 {[%clk 0:00:05]}  Kh8 {[%clk 0:00:01]} 49. Qd8 {[%clk 0:00:05]}  Rf8 {[%clk 0:00:02]} 50. Kg5 {[%clk 0:00:05]}  Rg8 {[%clk 0:00:01]} 51. g4 {[%clk 0:00:05]}  Bxh5 {[%clk 0:00:01]} 52. Qd5 {[%clk 0:00:02]}  Be8 {[%clk 0:00:01]} 53. Qh1+ {[%clk 0:00:03]} 1-0


[Site "https://www.chess.com"]